[Event "3rd Sharjah Masters 2019"]
[Site "Sharjah"]
[Date "2019.03.29"]
[Round "8.34"]
[White "Pranav Vijay"]
[Black "Saurabh Anand"]
[Result "1-0"]
[ECO "C77"]
[WhiteElo "2265"]
[BlackElo "2385"]
[Annotator "NA"]
[PlyCount "106"]
[EventDate "2019.03.22"]
[EventType "swiss"]
[EventCountry "UAE"]
[SourceTitle "playchess.com"]
[Source "ChessBase"]
[SourceQuality "1"]
[TimeControl "5400+30"]

1. e4 {[%emt 0:00:00]} e5 {[%emt 0:00:46]} 2. Nf3 {[%emt 0:00:00]} Nc6 {[%emt 0:00:09]} 3. Bb5 {[%emt 0:00:00]} a6 {[%emt 0:00:06]} 4. Ba4 {[%emt 0:00:00]} Nf6 {[%emt 0:00:23]} 5. Bxc6 {[%emt 0:00:00]} dxc6 {[%emt 0:00:09]} 6. d3 {[%emt 0:00:00]} Nd7 {[%emt 0:00:37]} 7. Nbd2 {[%emt 0:00:18]} Bd6 {[%emt 0:04:37]} 8. O-O {[%emt 0:00:47]} O-O {[%emt 0:00:22]} 9. Nc4 {[%emt 0:00:50]} f6 {[%emt 0:03:56]} 10. c3 {[%emt 0:05:55]} Re8 {[%emt 0:03:24]} 11. Nh4 {[%emt 0:03:27]} Nf8 {[%emt 0:00:30]} 12. Qf3 {[%emt 0:01:52]} Be6 {[%emt 0:03:04]} 13. Nf5 {[%emt 0:02:11]} Ng6 {[%emt 0:06:09]} 14. Be3 {[%emt 0:02:33]} Ne7 {[%emt 0:01:56]} 15. Ng3 {[%emt 0:00:26]} b5 {[%emt 0:01:50]} 16. Nxd6 {[%emt 0:06:34]} cxd6 {[%emt 0:00:20]} 17. Nh5 {[%emt 0:04:07]} Bf7 {[%emt 0:12:29]} 18. Qg4 {[%emt 0:01:01]} Bxh5 {[%emt 0:00:53]} 19. Qxh5 {[%emt 0:00:07]} d5 {[%emt 0:00:11]} 20. Rad1 {[%emt 0:03:09]} Ng6 {[%emt 0:04:09]} 21. Qg4 {[%emt 0:02:17]} Qd6 {[%emt 0:07:17]} 22. d4 {[%emt 0:05:48]} dxe4 {[%emt 0:06:56]} 23. Qxe4 {[%emt 0:00:15]} Rad8 {[%emt 0:00:15]} 24. g3 {[%emt 0:13:33]} exd4 {[%emt 0:12:50]} 25. Qxd4 {[%emt 0:00:25]} Qxd4 {[%emt 0:00:17]} 26. Rxd4 {[%emt 0:00:37]} Ne5 {[%emt 0:00:10]} 27. Rxd8 {[%emt 0:02:58]} Rxd8 {[%emt 0:00:07]} 28. Kg2 {[%emt 0:02:25]} Nc4 {[%emt 0:02:43]} 29. Bc1 {[%emt 0:00:11]} Rd3 {[%emt 0:01:25]} 30. Re1 {[%emt 0:00:41]} Kf7 {[%emt 0:00:20]} 31. h3 {[%emt 0:00:46]} h5 {[%emt 0:05:37]} 32. Kf1 {[%emt 0:01:42]} h4 {[%emt 0:03:09]} 33. Ke2 {[%emt 0:00:33]} Rd5 {[%emt 0:00:21]} 34. Rf1 {[%emt 0:03:06]} Re5+ {[%emt 0:05:01]} 35. Kd3 {[%emt 0:01:55]} Rf5 {[%emt 0:03:51]} 36. gxh4 {[%emt 0:00:37]} Rf3+ {[%emt 0:03:16]} 37. Kd4 {[%emt 0:00:12]} Rxh3 {[%emt 0:00:06]} 38. Kc5 {[%emt 0:00:25]} Ne5 {[%emt 0:00:10]} 39. Kb6 {[%emt 0:03:58]} Rxh4 {[%emt 0:00:15]} 40. b3 {[%emt 0:00:04]} Rh3 {[%emt 0:02:56]} 41. Be3 {[%emt 0:00:40]} Ke6 {[%emt 0:05:20]} 42. Kxa6 {[%emt 0:01:32]} Kd5 {[%emt 0:01:49]} 43. Rd1+ {[%emt 0:01:06]} Ke4 {[%emt 0:00:08]} 44. a4 {[%emt 0:00:30]} bxa4 {[%emt 0:01:06]} 45. bxa4 {[%emt 0:00:02]} c5 {[%emt 0:00:13]} 46. Kb5 {[%emt 0:00:24]} f5 {[%emt 0:00:40]} 47. a5 {[%emt 0:01:33]} f4 {[%emt 0:00:02]} 48. Bxc5 {[%emt 0:01:31]} Rxc3 {[%emt 0:00:02]} 49. Rd4+ {[%emt 0:02:03]} Kf3 {[%emt 0:00:34]} 50. a6 {[%emt 0:00:19]} Nd3 {[%emt 0:00:04]} 51. Bd6 {[%emt 0:00:18]} Nxf2 {[%emt 0:01:12]} 52. a7 {[%emt 0:00:33]} Rc8 {[%emt 0:00:03]} 53. Bb8 {[%emt 0:00:05]} Rxb8+ {[%emt 0:00:18]} 1-0

[Event "3rd Sharjah Masters 2019"]
[Site "Sharjah"]
[Date "2019.03.29"]
[Round "8.35"]
[White "Sukandar, Irine Kharisma"]
[Black "Panda, Sambit"]
[Result "1-0"]
[ECO "B13"]
[WhiteElo "2381"]
[BlackElo "2218"]
[Annotator "NA"]
[PlyCount "71"]
[EventDate "2019.03.22"]
[EventType "swiss"]
[EventCountry "UAE"]
[SourceTitle "playchess.com"]
[Source "ChessBase"]
[SourceQuality "1"]
[TimeControl "5400+30"]

1. e4 {[%emt 0:00:00]} c6 {[%emt 0:00:35]} 2. d4 {[%emt 0:00:00]} d5 {[%emt 0:00:06]} 3. exd5 {[%emt 0:00:01]} cxd5 {[%emt 0:00:09]} 4. Bd3 {[%emt 0:00:11]} Nc6 {[%emt 0:00:08]} 5. c3 {[%emt 0:00:07]} Nf6 {[%emt 0:02:07]} 6. Bf4 {[%emt 0:00:38]} Bg4 {[%emt 0:00:47]} 7. Qb3 {[%emt 0:00:19]} Qd7 {[%emt 0:00:06]} 8. Nd2 {[%emt 0:00:22]} e6 {[%emt 0:00:35]} 9. Ngf3 {[%emt 0:00:21]} Bxf3 {[%emt 0:00:58]} 10. Nxf3 {[%emt 0:00:06]} Bd6 {[%emt 0:00:03]} 11. Bd2 {[%emt 0:00:37]} O-O {[%emt 0:00:15]} 12. Qc2 {[%emt 0:00:10]} Rac8 {[%emt 0:00:15]} 13. a3 {[%emt 0:00:21]} Na5 {[%emt 0:04:50]} 14. Bg5 {[%emt 0:06:25]} Ne4 {[%emt 0:01:45]} 15. Bxe4 {[%emt 0:05:19]} dxe4 {[%emt 0:00:34]} 16. Qxe4 {[%emt 0:00:09]} h6 {[%emt 0:01:17]} 17. Be3 {[%emt 0:11:36]} Qb5 {[%emt 0:10:10]} 18. Qc2 {[%emt 0:05:22]} Rfe8 {[%emt 0:50:54]} 19. a4 {[%emt 0:08:42]} Qc4 {[%emt 0:03:01]} 20. Qe2 {[%emt 0:01:48]} e5 {[%emt 0:02:38]} 21. Qxc4 {[%emt 0:11:16]} Nxc4 {[%emt 0:00:33]} 22. O-O-O {[%emt 0:00:28]} e4 {[%emt 0:05:39]} 23. Nd2 {[%emt 0:02:10]} Nb6 {[%emt 0:00:26]} 24. Kc2 {[%emt 0:04:29]} f5 {[%emt 0:07:36]} 25. g3 {[%emt 0:00:13]} g5 {[%emt 0:01:37]} 26. d5 {[%emt 0:08:06]} Nxa4 {[%emt 0:04:04]} 27. h4 {[%emt 0:01:04]} f4 {[%emt 0:01:02]} 28. gxf4 {[%emt 0:00:15]} gxf4 {[%emt 0:00:35]} 29. Bd4 {[%emt 0:00:22]} Nc5 {[%emt 0:01:03]} 30. Rhg1+ {[%emt 0:00:24]} Kf8 {[%emt 0:00:26]} 31. Rg6 {[%emt 0:00:19]} Be5 {[%emt 0:00:44]} 32. Bxc5+ {[%emt 0:00:23]} Kf7 {[%emt 0:00:26]} 33. h5 {[%emt 0:02:25]} Bf6 {[%emt 0:00:33]} 34. Nb3 {[%emt 0:00:38]} e3 {[%emt 0:00:21]} 35. fxe3 {[%emt 0:00:18]} fxe3 {[%emt 0:00:04]} 36. Rf1 {[%emt 0:00:15]} 1-0

[Event "3rd Sharjah Masters 2019"]
[Site "Sharjah"]
[Date "2019.03.29"]
[Round "8.36"]
[White "Fenil, Shah"]
[Black "Abdurakhmonov, Mukhammadali"]
[Result "1-0"]
[ECO "B06"]
[WhiteElo "2360"]
[BlackElo "2205"]
[Annotator "NA"]
[PlyCount "71"]
[EventDate "2019.03.22"]
[EventType "swiss"]
[EventCountry "UAE"]
[SourceTitle "playchess.com"]
[Source "ChessBase"]
[SourceQuality "1"]
[TimeControl "5400+30"]

1. d4 {[%emt 0:00:00]} g6 {[%emt 0:00:00]} 2. e4 {[%emt 0:00:00]} Bg7 {[%emt 0:00:00]} 3. Nc3 {[%emt 0:00:27]} d6 {[%emt 0:00:08]} 4. Bg5 {[%emt 0:02:25]} c6 {[%emt 0:05:43]} 5. Qd2 {[%emt 0:02:34]} Nd7 {[%emt 0:10:20]} 6. f4 {[%emt 0:03:28]} b5 {[%emt 0:01:47]} 7. Nf3 {[%emt 0:03:43]} Nb6 {[%emt 0:03:01]} 8. Bd3 {[%emt 0:04:18]} Nc4 {[%emt 0:06:01]} 9. Bxc4 {[%emt 0:11:36]} bxc4 {[%emt 0:00:07]} 10. O-O {[%emt 0:01:12]} Qb6 {[%emt 0:11:01]} 11. e5 {[%emt 0:05:37]} Bg4 {[%emt 0:14:27]} 12. Rae1 {[%emt 0:08:25]} O-O-O {[%emt 0:03:17]} 13. Qe3 {[%emt 0:09:44]} Nh6 {[%emt 0:20:25]} 14. Bxe7 {[%emt 0:07:49]} Rd7 {[%emt 0:07:00]} 15. Bxd6 {[%emt 0:15:05]} Nf5 {[%emt 0:00:12]} 16. Qf2 {[%emt 0:06:46]} Nxd6 {[%emt 0:00:40]} 17. Na4 {[%emt 0:02:57]} Qa5 {[%emt 0:03:23]} 18. Nc5 {[%emt 0:00:19]} Nb7 {[%emt 0:00:11]} 19. Nxd7 {[%emt 0:00:25]} Bxd7 {[%emt 0:00:09]} 20. Ng5 {[%emt 0:02:25]} Qd5 {[%emt 0:01:33]} 21. b3 {[%emt 0:01:24]} Bf5 {[%emt 0:02:01]} 22. bxc4 {[%emt 0:02:06]} Qxc4 {[%emt 0:00:02]} 23. d5 {[%emt 0:00:01]} Qxd5 {[%emt 0:00:22]} 24. Qxa7 {[%emt 0:01:54]} h6 {[%emt 0:00:04]} 25. Rd1 {[%emt 0:00:10]} Qc5+ {[%emt 0:05:09]} 26. Qxc5 {[%emt 0:00:04]} Nxc5 {[%emt 0:00:02]} 27. Nxf7 {[%emt 0:00:02]} Rf8 {[%emt 0:00:01]} 28. Nd6+ {[%emt 0:00:17]} Kc7 {[%emt 0:00:00]} 29. Rd4 {[%emt 0:03:41]} Be6 {[%emt 0:00:40]} 30. Rf3 {[%emt 0:00:37]} Bd5 {[%emt 0:04:26]} 31. Ra3 {[%emt 0:00:26]} Ne6 {[%emt 0:02:42]} 32. Rb4 {[%emt 0:00:43]} c5 {[%emt 0:00:11]} 33. Ra7+ {[%emt 0:00:28]} Kc6 {[%emt 0:00:09]} 34. Rbb7 {[%emt 0:01:24]} c4 {[%emt 0:00:14]} 35. c3 {[%emt 0:01:06]} Nc5 {[%emt 0:01:11]} 36. Rxg7 {[%emt 0:00:47]} 1-0

[Event "3rd Sharjah Masters 2019"]
[Site "Sharjah"]
[Date "2019.03.29"]
[Round "8.37"]
[White "Ahmed, Fareed"]
[Black "Pranav Anand"]
[Result "0-1"]
[ECO "C91"]
[WhiteElo "1950"]
[BlackElo "2359"]
[Annotator "NA"]
[PlyCount "82"]
[EventDate "2019.03.22"]
[EventType "swiss"]
[EventCountry "UAE"]
[SourceTitle "playchess.com"]
[Source "ChessBase"]
[SourceQuality "1"]
[TimeControl "5400+30"]

1. e4 {[%emt 0:05:31]} e5 {[%emt 0:00:00]} 2. Nf3 {[%emt 0:00:07]} Nc6 {[%emt 0:00:00]} 3. Bb5 {[%emt 0:00:06]} a6 {[%emt 0:00:00]} 4. Ba4 {[%emt 0:00:05]} Nf6 {[%emt 0:00:00]} 5. O-O {[%emt 0:00:04]} Be7 {[%emt 0:00:00]} 6. Re1 {[%emt 0:00:07]} b5 {[%emt 0:00:03]} 7. Bb3 {[%emt 0:00:06]} d6 {[%emt 0:00:04]} 8. c3 {[%emt 0:00:06]} O-O {[%emt 0:00:04]} 9. d4 {[%emt 0:00:03]} Bg4 {[%emt 0:00:05]} 10. Be3 {[%emt 0:00:03]} exd4 {[%emt 0:00:06]} 11. cxd4 {[%emt 0:00:10]} d5 {[%emt 0:00:07]} 12. e5 {[%emt 0:00:05]} Ne4 {[%emt 0:00:04]} 13. Nc3 {[%emt 0:00:04]} Nxc3 {[%emt 0:00:39]} 14. bxc3 {[%emt 0:00:03]} Na5 {[%emt 0:00:06]} 15. h3 {[%emt 0:03:53]} Bh5 {[%emt 0:02:45]} 16. g4 {[%emt 0:01:01]} Bg6 {[%emt 0:01:57]} 17. Nd2 {[%emt 0:00:11]} b4 {[%emt 0:10:01]} 18. cxb4 {[%emt 0:39:49]} Bxb4 {[%emt 0:00:25]} 19. f4 {[%emt 0:00:03]} Nxb3 {[%emt 0:12:37]} 20. axb3 {[%emt 0:00:13]} Bd3 {[%emt 0:02:04]} 21. f5 {[%emt 0:02:57]} c5 {[%emt 0:07:38]} 22. dxc5 {[%emt 0:08:21]} d4 {[%emt 0:01:09]} 23. Bf2 {[%emt 0:07:03]} Qd5 {[%emt 0:02:19]} 24. Qf3 {[%emt 0:00:25]} Qxf3 {[%emt 0:05:18]} 25. Nxf3 {[%emt 0:00:20]} Bxe1 {[%emt 0:00:09]} 26. Rxe1 {[%emt 0:00:25]} Rac8 {[%emt 0:02:52]} 27. Bxd4 {[%emt 0:15:37]} Rb8 {[%emt 0:00:43]} 28. e6 {[%emt 0:08:20]} f6 {[%emt 0:01:44]} 29. e7 {[%emt 0:04:57]} Rfe8 {[%emt 0:00:54]} 30. c6 {[%emt 0:00:02]} Rxb3 {[%emt 0:08:27]} 31. c7 {[%emt 0:03:46]} Kf7 {[%emt 0:00:34]} 32. Bc5 {[%emt 0:01:00]} Rc3 {[%emt 0:00:21]} 33. Bd6 {[%emt 0:00:44]} Rc6 {[%emt 0:00:34]} 34. Re6 {[%emt 0:00:38]} Bc4 {[%emt 0:08:58]} 35. Nd4 {[%emt 0:00:10]} Rb6 {[%emt 0:00:16]} 36. Bc5 {[%emt 0:00:53]} Bxe6 {[%emt 0:07:00]} 37. Bxb6 {[%emt 0:00:11]} Bd7 {[%emt 0:00:14]} 38. Bc5 {[%emt 0:00:27]} Rxe7 {[%emt 0:00:57]} 39. Bxe7 {[%emt 0:00:31]} Kxe7 {[%emt 0:00:01]} 40. Nc6+ {[%emt 0:00:50]} Kd6 {[%emt 0:00:14]} 41. Nb8 {[%emt 0:00:28]} Bc8 {[%emt 0:00:11]} 0-1

[Event "3rd Sharjah Masters 2019"]
[Site "Sharjah"]
[Date "2019.03.29"]
[Round "8.38"]
[White "Sidhant, Mohapatra"]
[Black "Gokhale, Chandrashekhar"]
[Result "1/2-1/2"]
[ECO "B07"]
[WhiteElo "2348"]
[BlackElo "2185"]
[Annotator "NA"]
[PlyCount "102"]
[EventDate "2019.03.22"]
[EventType "swiss"]
[EventCountry "UAE"]
[SourceTitle "playchess.com"]
[Source "ChessBase"]
[SourceQuality "1"]
[TimeControl "5400+30"]

1. e4 {[%emt 0:00:00]} d6 {[%emt 0:00:11]} 2. d4 {[%emt 0:00:18]} Nf6 {[%emt 0:00:07]} 3. Nc3 {[%emt 0:00:07]} e5 {[%emt 0:00:09]} 4. Nge2 {[%emt 0:01:22]} Nbd7 {[%emt 0:02:48]} 5. g3 {[%emt 0:00:33]} g6 {[%emt 0:00:55]} 6. Bg2 {[%emt 0:00:12]} Bg7 {[%emt 0:00:08]} 7. O-O {[%emt 0:01:06]} O-O {[%emt 0:00:29]} 8. dxe5 {[%emt 0:03:09]} dxe5 {[%emt 0:00:30]} 9. h3 {[%emt 0:00:09]} c6 {[%emt 0:04:08]} 10. Qd6 {[%emt 0:01:17]} Re8 {[%emt 0:00:39]} 11. Be3 {[%emt 0:00:33]} Bf8 {[%emt 0:07:12]} 12. Qd2 {[%emt 0:00:06]} Nb6 {[%emt 0:10:04]} 13. Qxd8 {[%emt 0:00:38]} Rxd8 {[%emt 0:00:02]} 14. b3 {[%emt 0:00:13]} Nfd7 {[%emt 0:03:33]} 15. Rad1 {[%emt 0:06:08]} Re8 {[%emt 0:01:22]} 16. a4 {[%emt 0:00:06]} a5 {[%emt 0:00:28]} 17. Nc1 {[%emt 0:00:08]} Nc5 {[%emt 0:09:33]} 18. Nd3 {[%emt 0:00:39]} Nxd3 {[%emt 0:01:05]} 19. Rxd3 {[%emt 0:02:21]} Nd7 {[%emt 0:00:25]} 20. Rfd1 {[%emt 0:03:31]} Nc5 {[%emt 0:00:34]} 21. R3d2 {[%emt 0:01:24]} Ne6 {[%emt 0:03:59]} 22. f4 {[%emt 0:12:37]} exf4 {[%emt 0:07:41]} 23. gxf4 {[%emt 0:00:21]} Bc5 {[%emt 0:00:06]} 24. Kf2 {[%emt 0:08:12]} f5 {[%emt 0:04:11]} 25. Bxc5 {[%emt 0:16:26]} Nxc5 {[%emt 0:00:08]} 26. e5 {[%emt 0:00:23]} Be6 {[%emt 0:01:12]} 27. h4 {[%emt 0:00:19]} Kf7 {[%emt 0:01:02]} 28. Ke3 {[%emt 0:01:18]} Ke7 {[%emt 0:00:22]} 29. Ne2 {[%emt 0:10:28]} Rad8 {[%emt 0:03:56]} 30. Rxd8 {[%emt 0:01:44]} Rxd8 {[%emt 0:00:01]} 31. Rxd8 {[%emt 0:00:09]} Kxd8 {[%emt 0:00:04]} 32. Nd4 {[%emt 0:00:06]} Bf7 {[%emt 0:04:08]} 33. h5 {[%emt 0:02:07]} Ke7 {[%emt 0:01:44]} 34. h6 {[%emt 0:01:08]} Na6 {[%emt 0:02:00]} 35. Kd2 {[%emt 0:08:14]} Nb4 {[%emt 0:01:13]} 36. c4 {[%emt 0:02:09]} Na6 {[%emt 0:00:46]} 37. Nf3 {[%emt 0:00:49]} Nc5 {[%emt 0:03:32]} 38. Ng5 {[%emt 0:00:05]} Ne6 {[%emt 0:10:45]} 39. Nxh7 {[%emt 0:01:30]} Nxf4 {[%emt 0:00:07]} 40. Ng5 {[%emt 0:00:13]} Bg8 {[%emt 0:00:14]} 41. Bf1 {[%emt 0:01:33]} Ne6 {[%emt 0:00:47]} 42. h7 {[%emt 0:00:08]} Bxh7 {[%emt 0:00:05]} 43. Nxh7 {[%emt 0:00:03]} Nc5 {[%emt 0:00:34]} 44. Kc2 {[%emt 0:00:12]} Ke6 {[%emt 0:00:19]} 45. Bg2 {[%emt 0:01:26]} Kxe5 {[%emt 0:00:09]} 46. Kc3 {[%emt 0:00:55]} Ne6 {[%emt 0:00:51]} 47. b4 {[%emt 0:00:57]} axb4+ {[%emt 0:02:31]} 48. Kxb4 {[%emt 0:00:01]} g5 {[%emt 0:00:12]} 49. Nxg5 {[%emt 0:00:57]} Nxg5 {[%emt 0:00:07]} 50. Kc5 {[%emt 0:00:03]} Ne4+ {[%emt 0:04:18]} 51. Kb6 {[%emt 0:00:07]} Kd4 {[%emt 0:00:07] Kxc6 bxc6} 1/2-1/2

[Event "3rd Sharjah Masters 2019"]
[Site "Sharjah"]
[Date "2019.03.29"]
[Round "8.41"]
[White "Rayes, Abdul Kader"]
[Black "Nitin, S.."]
[Result "1/2-1/2"]
[ECO "A45"]
[WhiteElo "2219"]
[BlackElo "2408"]
[Annotator "NA"]
[PlyCount "105"]
[EventDate "2019.03.22"]
[EventType "swiss"]
[EventCountry "UAE"]
[SourceTitle "playchess.com"]
[Source "ChessBase"]
[SourceQuality "1"]
[TimeControl "5400+30"]

1. d4 {[%emt 0:00:00]} Nf6 {[%emt 0:00:04]} 2. Bg5 {[%emt 0:00:17]} c5 {[%emt 0:00:15]} 3. d5 {[%emt 0:00:14]} Qb6 {[%emt 0:03:50]} 4. Nc3 {[%emt 0:00:03]} Qxb2 {[%emt 0:00:50]} 5. Bd2 {[%emt 0:00:02]} Qb6 {[%emt 0:00:21]} 6. e4 {[%emt 0:00:08]} d6 {[%emt 0:00:05]} 7. f4 {[%emt 0:00:11]} e5 {[%emt 0:00:17]} 8. Rb1 {[%emt 0:07:47]} Qd8 {[%emt 0:02:38]} 9. fxe5 {[%emt 0:02:42]} dxe5 {[%emt 0:00:25]} 10. Nf3 {[%emt 0:00:43]} Bd6 {[%emt 0:01:17]} 11. Bb5+ {[%emt 0:02:45]} Nbd7 {[%emt 0:01:09]} 12. O-O {[%emt 0:02:32]} a6 {[%emt 0:07:13]} 13. Bxd7+ {[%emt 0:01:33]} Nxd7 {[%emt 0:01:51]} 14. Qe1 {[%emt 0:06:53]} Nf6 {[%emt 0:06:21]} 15. Bg5 {[%emt 0:07:22]} h6 {[%emt 0:02:17]} 16. Qh4 {[%emt 0:06:49]} b5 {[%emt 0:01:56]} 17. a4 {[%emt 0:06:53]} b4 {[%emt 0:03:43]} 18. Nd1 {[%emt 0:01:23]} Rg8 {[%emt 0:02:47]} 19. Bc1 {[%emt 0:18:40]} Bd7 {[%emt 0:05:24]} 20. Nb2 {[%emt 0:00:47]} Qe7 {[%emt 0:08:44]} 21. Ra1 {[%emt 0:02:44]} c4 {[%emt 0:02:39]} 22. Nxc4 {[%emt 0:00:34]} Rc8 {[%emt 0:00:09]} 23. Nxd6+ {[%emt 0:01:43]} Qxd6 {[%emt 0:00:06]} 24. Bb2 {[%emt 0:06:21]} Ng4 {[%emt 0:00:50]} 25. h3 {[%emt 0:05:40]} Rxc2 {[%emt 0:02:01]} 26. hxg4 {[%emt 0:01:34]} Rxb2 {[%emt 0:00:06]} 27. Qh5 {[%emt 0:00:03]} g6 {[%emt 0:05:15]} 28. Qxe5+ {[%emt 0:08:33]} Qxe5 {[%emt 0:00:41]} 29. Nxe5 {[%emt 0:00:01]} f5 {[%emt 0:01:37]} 30. Rac1 {[%emt 0:02:59]} Kd8 {[%emt 0:00:08]} 31. Nf7+ {[%emt 0:03:11]} Ke7 {[%emt 0:00:15]} 32. Nxh6 {[%emt 0:00:01]} Rh8 {[%emt 0:00:52]} 33. g5 {[%emt 0:00:08]} fxe4 {[%emt 0:01:42]} 34. d6+ {[%emt 0:01:06]} Ke6 {[%emt 0:01:24]} 35. Nf7 {[%emt 0:02:23]} Rh7 {[%emt 0:02:27]} 36. Rf6+ {[%emt 0:00:22]} Kd5 {[%emt 0:00:02]} 37. Rc7 {[%emt 0:00:38]} e3 {[%emt 0:01:09]} 38. Rxd7 {[%emt 0:00:45]} Rb1+ {[%emt 0:02:22]} 39. Rf1 {[%emt 0:00:08]} Rh1+ {[%emt 0:00:01]} 40. Kxh1 {[%emt 0:00:06]} Rxf1+ {[%emt 0:00:03]} 41. Kh2 {[%emt 0:00:04]} e2 {[%emt 0:00:03]} 42. Re7 {[%emt 0:00:17]} Rxf7 {[%emt 0:00:20]} 43. d7 {[%emt 0:00:46]} Rxe7 {[%emt 0:02:24]} 44. d8=Q+ {[%emt 0:00:06]} Ke6 {[%emt 0:00:02]} 45. Qc8+ {[%emt 0:02:07]} Kf7 {[%emt 0:00:16]} 46. Qc4+ {[%emt 0:00:18]} Kf8 {[%emt 0:00:58]} 47. Qf4+ {[%emt 0:00:29]} Kg8 {[%emt 0:00:51]} 48. Qc4+ {[%emt 0:00:17]} Kh8 {[%emt 0:01:13]} 49. Qd4+ {[%emt 0:00:02]} Kh7 {[%emt 0:01:07]} 50. Qh4+ {[%emt 0:00:06]} Kg8 {[%emt 0:00:11]} 51. Qc4+ {[%emt 0:00:06]} Kg7 {[%emt 0:00:20]} 52. Qd4+ {[%emt 0:00:13]} Kg8 {[%emt 0:01:08]} 53. Qc4+ {[%emt 0:00:07]} 1/2-1/2

[Event "3rd Sharjah Masters 2019"]
[Site "Sharjah"]
[Date "2019.03.29"]
[Round "8.43"]
[White "Blagojevic, Tijana"]
[Black "Assaubayeva, Bibisara"]
[Result "0-1"]
[ECO "B51"]
[WhiteElo "2206"]
[BlackElo "2376"]
[Annotator "NA"]
[PlyCount "60"]
[EventDate "2019.03.22"]
[EventType "swiss"]
[EventCountry "UAE"]
[SourceTitle "playchess.com"]
[Source "ChessBase"]
[SourceQuality "1"]
[TimeControl "5400+30"]

1. e4 {[%emt 0:00:00]} c5 {[%emt 0:00:00]} 2. Nf3 {[%emt 0:00:00]} d6 {[%emt 0:00:09]} 3. Bb5+ {[%emt 0:00:00]} Nd7 {[%emt 0:00:14]} 4. O-O {[%emt 0:00:05]} a6 {[%emt 0:00:23]} 5. Bd3 {[%emt 0:00:09]} Ngf6 {[%emt 0:00:13]} 6. Re1 {[%emt 0:00:17]} b5 {[%emt 0:00:35]} 7. c4 {[%emt 0:00:18]} g5 {[%emt 0:00:20]} 8. Nxg5 {[%emt 0:01:06]} Ne5 {[%emt 0:01:44]} 9. Bf1 {[%emt 0:00:34]} bxc4 {[%emt 0:00:09]} 10. Nf3 {[%emt 0:02:20]} Bg4 {[%emt 0:04:24]} 11. Be2 {[%emt 0:01:56]} Nd3 {[%emt 0:04:01]} 12. Bxd3 {[%emt 0:02:04]} cxd3 {[%emt 0:00:16]} 13. h3 {[%emt 0:03:00]} Bh5 {[%emt 0:03:50]} 14. e5 {[%emt 0:02:45]} dxe5 {[%emt 0:04:50]} 15. Qa4+ {[%emt 0:03:50]} Qd7 {[%emt 0:06:21]} 16. Qxd7+ {[%emt 0:04:05]} Nxd7 {[%emt 0:00:15]} 17. Nxe5 {[%emt 0:01:27]} Bg6 {[%emt 0:04:45]} 18. Nxg6 {[%emt 0:10:47]} hxg6 {[%emt 0:00:08]} 19. a4 {[%emt 0:12:20]} Rh4 {[%emt 0:04:18]} 20. Re3 {[%emt 0:08:47]} c4 {[%emt 0:02:15]} 21. g3 {[%emt 0:08:28]} Rd4 {[%emt 0:04:02]} 22. b3 {[%emt 0:03:13]} cxb3 {[%emt 0:07:14]} 23. Bb2 {[%emt 0:00:04]} Rd6 {[%emt 0:03:25]} 24. Ba3 {[%emt 0:02:11]} Re6 {[%emt 0:05:18]} 25. Bb2 {[%emt 0:05:01]} Rxe3 {[%emt 0:02:03]} 26. dxe3 {[%emt 0:00:04]} Rc8 {[%emt 0:02:09]} 27. Na3 {[%emt 0:01:44]} e5 {[%emt 0:01:09]} 28. Kf1 {[%emt 0:01:33]} e4 {[%emt 0:02:04]} 29. Ke1 {[%emt 0:00:59]} Bb4+ {[%emt 0:00:33]} 30. Kd1 {[%emt 0:00:04]} Rc2 {[%emt 0:00:21]} 0-1

[Event "3rd Sharjah Masters 2019"]
[Site "Sharjah"]
[Date "2019.03.29"]
[Round "8.45"]
[White "Omar, Noaman"]
[Black "Thrish, Karthik"]
[Result "1-0"]
[ECO "D02"]
[WhiteElo "2356"]
[BlackElo "2096"]
[Annotator "NA"]
[PlyCount "93"]
[EventDate "2019.03.22"]
[EventType "swiss"]
[EventCountry "UAE"]
[SourceTitle "playchess.com"]
[Source "ChessBase"]
[SourceQuality "1"]
[TimeControl "5400+30"]

1. d4 {[%emt 0:00:00]} d5 {[%emt 0:00:00]} 2. Nf3 {[%emt 0:00:00]} Bf5 {[%emt 0:00:00]} 3. c4 {[%emt 0:01:22]} e6 {[%emt 0:00:00]} 4. Nc3 {[%emt 0:00:02]} Nc6 {[%emt 0:00:18]} 5. cxd5 {[%emt 0:03:59]} exd5 {[%emt 0:00:08]} 6. Bf4 {[%emt 0:00:27]} Nf6 {[%emt 0:01:13]} 7. e3 {[%emt 0:00:12]} Bb4 {[%emt 0:03:49]} 8. Bb5 {[%emt 0:00:32]} O-O {[%emt 0:03:22]} 9. O-O {[%emt 0:00:17]} Ne7 {[%emt 0:07:43]} 10. Qb3 {[%emt 0:04:33]} Bd6 {[%emt 0:01:50]} 11. Bg5 {[%emt 0:01:22]} c6 {[%emt 0:10:17]} 12. Bxf6 {[%emt 0:01:13]} gxf6 {[%emt 0:00:39]} 13. Be2 {[%emt 0:00:10]} Qd7 {[%emt 0:01:23]} 14. Nh4 {[%emt 0:00:57]} Kh8 {[%emt 0:05:05]} 15. Nxf5 {[%emt 0:04:05]} Nxf5 {[%emt 0:04:54]} 16. Bg4 {[%emt 0:00:58]} Rg8 {[%emt 0:01:16]} 17. Bh3 {[%emt 0:00:04]} Nxe3 {[%emt 0:16:43]} 18. Kh1 {[%emt 0:00:43]} Rxg2 {[%emt 0:00:23]} 19. Bxg2 {[%emt 0:01:17]} Nxg2 {[%emt 0:00:26]} 20. Ne2 {[%emt 0:05:25]} Rg8 {[%emt 0:15:12]} 21. Qf3 {[%emt 0:01:28]} Rg6 {[%emt 0:09:08]} 22. Rg1 {[%emt 0:00:51]} Nh4 {[%emt 0:00:29]} 23. Qe3 {[%emt 0:01:13]} Nf5 {[%emt 0:08:15]} 24. Qd3 {[%emt 0:00:21]} Rh6 {[%emt 0:04:00]} 25. f4 {[%emt 0:00:22]} Qe6 {[%emt 0:01:42]} 26. Raf1 {[%emt 0:05:06]} Rg6 {[%emt 0:04:04]} 27. Rf3 {[%emt 0:01:48]} Qe4 {[%emt 0:00:33]} 28. Ng3 {[%emt 0:00:47]} Nxg3+ {[%emt 0:00:29]} 29. hxg3 {[%emt 0:01:02]} f5 {[%emt 0:00:32]} 30. Kg2 {[%emt 0:06:04]} Re6 {[%emt 0:00:09]} 31. Kf2 {[%emt 0:00:40]} c5 {[%emt 0:00:47]} 32. Re3 {[%emt 0:00:19]} Qxd4 {[%emt 0:00:34]} 33. Qxd4+ {[%emt 0:00:07]} cxd4 {[%emt 0:00:03]} 34. Rxe6 {[%emt 0:00:25]} fxe6 {[%emt 0:00:03]} 35. Re1 {[%emt 0:00:42]} Bc5 {[%emt 0:01:01]} 36. Rxe6 {[%emt 0:00:03]} d3+ {[%emt 0:00:40]} 37. Kf3 {[%emt 0:00:30]} d2 {[%emt 0:00:42]} 38. Ke2 {[%emt 0:00:04]} Bf2 {[%emt 0:00:17]} 39. Kxd2 {[%emt 0:00:32]} Bxg3 {[%emt 0:00:10]} 40. Ke3 {[%emt 0:00:24]} Bh2 {[%emt 0:00:44]} 41. Re5 {[%emt 0:01:36]} Bg1+ {[%emt 0:00:38]} 42. Kd3 {[%emt 0:00:04]} d4 {[%emt 0:00:17]} 43. Rxf5 {[%emt 0:00:09]} Be3 {[%emt 0:00:06]} 44. Ke4 {[%emt 0:00:17]} Kg7 {[%emt 0:00:19]} 45. Rd5 {[%emt 0:00:26]} Kg6 {[%emt 0:00:40]} 46. Rd6+ {[%emt 0:00:24]} Kh5 {[%emt 0:00:14]} 47. Rd7 {[%emt 0:00:30]} 1-0